Cogmind - Beta 17 @@@ ROGUE MODE // 2026.08.01 @ 15:58:45 Player: gorb Result: Destroyed by H-66 Slayer with Gauss Rifle Performance ------------- Evolutions (4) 2000 Regions Visited (6) 1200 Robots Destroyed (20) 100 Value Destroyed (611) 611 Prototype IDs (5) 100 Alien Tech Used (0) 0 Bonus (10790) 10790 TOTAL SCORE: 14801 Bonus ------- Follower Combat Kills 40 Prayed to X0-1V1 5000 Major X0-1V1 Interference 5750 Cogmind --------- Core Integrity 0/825 Matter 535/900 Energy 293/1200 System Corruption 0% Temperature Cool (0) Movement Core (150) Ox2 Location -6/Factory Parts ------- > --- POWER (3) -------- (None) > --- PROPULSION (5) --- (None) > --- UTILITY (5) ------ (None) > --- WEAPON (2) ------- Improved Heavy Machine Gun Improved Heavy Machine Gun > --- INVENTORY (5) ---- Protomatter-54 Armored Leg Peak State ------------ > --- POWER ------------ Light Ion Engine > --- PROPULSION ------- Cesium-ion Thruster Cesium-ion Thruster Xenon Bombardment Thruster > --- UTILITY ---------- Small Storage Unit Signal Interpreter Hacking Suite X0-1V1's Piety Tracker > --- WEAPON ----------- Makeshift Laser Makeshift Laser Light Assault Rifle > --- INVENTORY -------- Cooled Ion Engine Light Nuclear Core Stasis Canceller Heavy Battle Rifle Mining Claw Heavy Pick [Rating: 40] Favorites ----------- Power Ion Engine Engine Ion Engine Power Core Light Nuclear Core Propulsion Compact Wheel Wheel Compact Wheel Hover Unit Gravmag System Flight Unit Cesium-ion Thruster Utility Small Storage Unit Device X0-1V1's Piety Tracker Storage Small Storage Unit Processor Signal Interpreter Hackware Hacking Suite Weapon Light Assault Rifle Energy Gun Makeshift Laser Ballistic Gun Light Assault Rifle Ballistic Cannon Heavy Flak Cannon Impact Weapon Great Maul Slashing Weapon Mining Claw Piercing Weapon Heavy Pick Build | -11 -10 -10 -9 -8 -7 -6 ------- Run | Yrd Mat Min Mat Mat Fac Fac Slots Evolved 8 | . . . 2 2 2 2 Power 1 | . . . . 1 . . Propulsion 4 | . . . 2 1 . 1 Utility 3 | . . . . . 2 1 Weapon . | . . . . . . . Parts Attached 53 | 3 5 . 23 4 3 15 Power 8 | . 1 . 3 2 . 2 Engine 6 | . 1 . 3 1 . 1 Core 2 | . . . . 1 . 1 Reactor . | . . . . . . . Propulsion 26 | 2 . . 15 2 1 6 Treads . | . . . . . . . Leg . | . . . . . . . Wheel 10 | 2 . . 8 . . . Hover 5 | . . . . . . 5 Flight 11 | . . . 7 2 1 1 Utility 9 | 1 2 . . . 2 4 Device 3 | . 1 . . . . 2 Storage 1 | 1 . . . . . . Processor 2 | . 1 . . . 1 . Hackware 3 | . . . . . 1 2 Protection . | . . . . . . . Artifact . | . . . . . . . Weapon 10 | . 2 . 5 . . 3 Energy Gun 1 | . . . 1 . . . Energy Cannon . | . . . . . . . Ballistic Gun 6 | . 2 . 3 . . 1 Ballistic Cannon 1 | . . . . . . 1 Launcher . | . . . . . . . Special Weapon . | . . . . . . . Impact Weapon . | . . . . . . . Slashing Weapon 1 | . . . 1 . . . Piercing Weapon 1 | . . . . . . 1 Special Melee Weapon . | . . . . . . . Unidentified Prototypes 4 | . 1 . 2 1 . . Parts Lost 28 | . . 1 5 . 9 13 Power 4 | . . . . . 2 2 Propulsion 12 | . . . 4 . 2 6 Utility 6 | . . . . . 3 3 Weapon 6 | . . 1 1 . 2 2 Highest Loss Streak 8 | . . 1 3 . 8 6 To Critical Strikes 1 | . . . 1 . . . Average Backups 4 | 2 5 7 5 5 6 1 Power . | 1 1 1 . 1 1 . Propulsion . | . 1 2 . . . . Utility 1 | . 1 2 2 2 2 . Weapon 1 | 1 1 2 1 1 2 . Tool/Special . | . . . . . . . Unused Backups 7 | . 2 . 2 . 2 1 Power 1 | . . . . . 1 . Propulsion 2 | . 1 . . . . 1 Utility 2 | . . . 1 . 1 . Weapon 2 | . 1 . 1 . . . Tool/Special . | . . . . . . . Average Slot Usage (%) 66 | . 97 98 85 54 63 15 Engine 8 | . 13 14 11 9 5 . Wheel 13 | . 28 28 23 . . . Hover 1 | . . . . . . 7 Flight 7 | . . . 10 18 16 . Device 7 | . 6 14 11 9 5 3 Storage 8 | . 14 14 11 9 5 . Processor 1 | . 5 . . . 5 . Energy Gun 1 | . . . . . 10 . Ballistic Gun 14 | . 27 27 17 9 5 1 Peak Build Rating 40 | 3 19 19 29 28 40 33 Average Rating 19 | 2 12 18 21 23 30 14 On Entrance 12 | . 3 19 18 21 24 2 Avg Prop Armor Cover (%) 19 | . . . . . . 19 Naked Turns 182 | . . . . . 39 143 Heaviest Build 18 | 5 15 15 18 14 14 16 Greatest Support 64 | 26 26 26 64 10 16 45 Greatest Overweight (x) 5 | . . . 5 1 2 5 Average Overweight (x) . | . . . . . . . Largest Inventory Capacity 8 | 8 8 8 8 8 8 5 Average Capacity 7 | 7 8 8 8 8 7 5 Most Carried 8 | 5 8 7 8 8 8 5 Average Carried 4 | 3 5 7 5 5 6 2 Final Capacity 8 | 8 8 8 8 8 5 5 Final Carried 8 | 5 7 7 6 8 5 2 Class Distribution -------------------- 79% | Mutant 13% | Sprinter 4% | Commander-Sprinter Dominant Class ---------------- Mutant | -10/Materials Mutant | -10/Mines Mutant | -9/Materials Sprinter | -8/Materials Sprinter | -7/Factory Mutant | -6/Factory Resources | -11 -10 -10 -9 -8 -7 -6 ----------- Run | Yrd Mat Min Mat Mat Fac Fac Matter Collected 1504 | 209 148 . 321 . 781 45 Remotely . | . . . . . . . Salvage Created 498 | . 165 . 254 . . 79 Parts 35 | . 8 . 25 . . 2 Haulers Intercepted . | . . . . . . . Recyclers Shooed . | . . . . . . . Parts Field Recycled . | . . . . . . . Retrieved Matter . | . . . . . . . Parts Self-Destructed . | . . . . . . . Prevented . | . . . . . . . Parts Restored . | . . . . . . . Kills | -11 -10 -10 -9 -8 -7 -6 ------- Run | Yrd Mat Min Mat Mat Fac Fac Combat Hostiles Destroyed 17 | . 5 . 8 . . 4 Melee 1 | . . . . . . 1 Guns 13 | . 5 . 8 . . . Cannons 2 | . . . . . . 2 AOE 1 | . . . . . . 1 Classes Destroyed 6 | . 3 . 1 . . 2 Worker 3 | . 2 . 1 . . . Swarmer 7 | . 3 . 4 . . . Grunt 6 | . 2 . 3 . . 1 Duelist 1 | . . . . . . 1 Sentry 1 | . . . 1 . . . Programmer 2 | . . . . . . 2 Best Kill Streak 4 | . 4 . 4 . . 2 Combat Bots Only 4 | . 3 . 4 . . 2 Max Kills in Single Turn 1 | . 1 . 1 . . 1 Gunslinging . | . . . . . . . Exploded 1 | . . . . . . 1 Melee 1 | . . . . . . 1 Uniques/NPCs Destroyed . | . . . . . . . Combat | -11 -10 -10 -9 -8 -7 -6 -------- Run | Yrd Mat Min Mat Mat Fac Fac Hostile Shots Fired 533 | . 33 2 87 6 188 217 Missed 191 | . 7 . 22 4 63 95 Hits 342 | . 26 2 65 2 125 122 Melee 56 | . . . . . 46 10 Projectile 286 | . 26 2 65 2 79 112 AOE 1 | . . . . . 1 . Critical Strikes 19 | . . . 4 . 1 14 Damage Taken 4361 | . 273 21 857 27 973 2210 Core 2235 | . 62 . 281 14 543 1335 Absorbed by Shields . | . . . . . . . Core Remaining (%) 68 | 100 . 100 25 97 19 . Volleys Fired 73 | . 26 . 30 . 6 11 Largest 3 | . 2 . 2 . 3 2 Hottest 120 | . 40 . 40 . 120 77 Shots Fired 138 | . 52 . 53 . 16 17 Gun 132 | . 52 . 53 . 16 11 Cannon 6 | . . . . . . 6 Launcher . | . . . . . . . Special . | . . . . . . . Kinetic 128 | . 52 . 53 . 6 17 Thermal 10 | . . . . . 10 . Explosive . | . . . . . . . Electromagnetic . | . . . . . . . Robot Hit Streak 25 | . 8 . 25 . 2 6 Robot Miss Streak 8 | . 5 . 2 . 8 4 Penetration Max . | . . . . . . . Secondary Targets . | . . . . . . . Shots Hit Robots 96 | . 29 . 42 . 5 20 Core Hits 37 | . 10 . 15 . 1 11 Critical Kills . | . . . . . . . Critical Parts Destroyed . | . . . . . . . Critical Strikes 1 | . . . . . . 1 Impale 1 | . . . . . . 1 Melee Attacks 7 | . . . . . . 7 Impact . | . . . . . . . Slashing . | . . . . . . . Piercing 7 | . . . . . . 7 Sneak Attacks . | . . . . . . . Combat Hostiles . | . . . . . . . Follow-up Attacks . | . . . . . . . Damage Inflicted 7927 | . 372 . 365 . 66 7124 Guns 1001 | . 372 . 365 . 66 198 Cannons 6402 | . . . . . . 6402 Explosions 361 | . . . . . . 361 Melee 152 | . . . . . . 152 Ramming 11 | . . . . . . 11 Kinetic 1101 | . 372 . 365 . 14 350 Thermal 6559 | . . . . . 52 6507 Explosive 104 | . . . . . . 104 Electromagnetic . | . . . . . . . Impact . | . . . . . . . Slashing . | . . . . . . . Piercing 152 | . . . . . . 152 Highest Corruption 29 | . . . . . 29 5 Average Corruption 7 | . . . . . 18 4 Corruption Purged . | . . . . . . . Corruption Blocked . | . . . . . . . Effects 21 | . . . . . 10 11 Message Errors 8 | . . . . . 3 5 Matter Fused 3 | . . . . . 1 2 Heat Flow Errors 2 | . . . . . 1 1 Energy Discharges 2 | . . . . . . 2 Data Loss (minor) 1 | . . . . . 1 . Alerts 2 | . . . . . 1 1 Misdirections 1 | . . . . . 1 . Weapon Failures 2 | . . . . . 2 . Overload Shots . | . . . . . . . Overflow Damage 21 | . . . . . . 21 Projectiles . | . . . . . . . Explosions . | . . . . . . . Melee 21 | . . . . . . 21 Knockbacks . | . . . . . . . Impact . | . . . . . . . Kinetic . | . . . . . . . Secondary . | . . . . . . . Self-Inflicted Damage 5 | . . . . . . 5 Shots . | . . . . . . . Rammed 7 | . 2 1 . . . 4 Targets Rammed 7 | . 2 1 . . . 4 Kicked . | . . . . . . . Crushed . | . . . . . . . Highest Temperature 323 | . 2 . 10 . 134 323 Average Temperature 91 | . 2 . 7 . 82 161 Received Heat Transfer 1230 | . 78 12 291 9 315 525 Siege Activations . | . . . . . . . Martial Activations . | . . . . . . . Shielding Activations . | . . . . . . . Robots Disrupted . | . . . . . . . Combat Hostiles . | . . . . . . . Robots Corrupted . | . . . . . . . Combat Hostiles . | . . . . . . . Parts Fried . | . . . . . . . Impact Corruptions . | . . . . . . . Robots Melted . | . . . . . . . Combat Hostiles . | . . . . . . . Parts Melted . | . . . . . . . Heat Transferred 461 | . . . . . 111 350 Parts Sabotaged . | . . . . . . . Parts Stolen 2 | . . . . . 2 . Parts Stripped . | . . . . . . . Power Chain Reactions . | . . . . . . . Alert | -11 -10 -10 -9 -8 -7 -6 ------- Run | Yrd Mat Min Mat Mat Fac Fac Maximum Alert Level 1 | . . . . . 1 1 Low Security (%) 76 | 100 100 100 100 100 81 5 Level 1 23 | . . . . . 18 94 Level 2 . | . . . . . . . Level 3 . | . . . . . . . Level 4 . | . . . . . . . Level 5 . | . . . . . . . High Security . | . . . . . . . Max Security . | . . . . . . . Peak Influence 389 | . 61 3 95 16 310 389 Initial 42 | . . 3 . 16 . 42 Average 89 | . 12 . 28 1 78 305 Influence Increases 1546 | . 131 . 270 . 387 758 Destroy 0b10 Robot/C 360 | . 100 . 160 . . 100 Destroy 0b10 Robot/NC 25 | . 10 . 5 . 5 5 Destroy Leader 92 | . 20 . 30 . 2 40 Allied During Kill 4 | . . . . . . 4 Successful Hack 6 | . . . . . 6 . Disable Machine 135 | . . . . . . 135 Destroy Structure 100 | . 1 . . . . 99 Partial Spotted 45 | . . . . . 45 . Lose Combat Pursuer 495 | . . . 75 . 45 375 Miscellaneous 284 | . . . . . 284 . Influence Decreases 1202 | . 121 10 230 40 300 501 Entered New Map 76 | . . 7 . 24 . 45 Time Decay 746 | . 121 3 190 16 130 286 Lost Part 260 | . . . 40 . 90 130 Lost Ally 120 | . . . . . 80 40 Squads Dispatched 16 | . . . 1 . 7 8 Investigation 3 | . . . 1 . 1 1 Extermination 3 | . . . . . 1 2 Reinforcement 6 | . . . . . 4 2 Assault . | . . . . . . . Garrison 4 | . . . . . 1 3 Intercept . | . . . . . . . Searches Triggered . | . . . . . . . Construction Impeded . | . . . . . . . Haulers Reinforced . | . . . . . . . Active Scanning Responses . | . . . . . . . Cargo Convoy Interrupts . | . . . . . . . Stealth | -11 -10 -10 -9 -8 -7 -6 --------- Run | Yrd Mat Min Mat Mat Fac Fac Distress Signals 6 | . 1 . 1 . 2 2 Communications Jammed . | . . . . . . . Distress Signals . | . . . . . . . Times Spotted 102 | . 10 2 21 2 21 46 Peak Tracking Total 12 | . 6 2 6 2 12 9 Tactical Retreats 18 | . . . 5 . 2 11 Traps | -11 -10 -10 -9 -8 -7 -6 ------- Run | Yrd Mat Min Mat Mat Fac Fac Traps Triggered 1 | . . . . . 1 . Indirectly . | . . . . . . . Trap Hack Attempts . | . . . . . . . Triggered . | . . . . . . . Disarmed . | . . . . . . . Reprogrammed . | . . . . . . . Reused . | . . . . . . . Traps Extracted . | . . . . . . . Installed . | . . . . . . . Triggered . | . . . . . . . Machines | -11 -10 -10 -9 -8 -7 -6 ---------- Run | Yrd Mat Min Mat Mat Fac Fac Machines Disabled 9 | . . . . . . 9 Max in Single Turn 8 | . . . . . . 8 Machines Repaired . | . . . . . . . Machines Dismantled . | . . . . . . . Machines Sabotaged . | . . . . . . . Overloaded Fab Kills . | . . . . . . . Hacking | -11 -10 -10 -9 -8 -7 -6 --------- Run | Yrd Mat Min Mat Mat Fac Fac Machines Accessed 5 | . 1 . 2 . 2 . Terminals 5 | . 1 . 2 . 2 . Fabricators . | . . . . . . . Repair Stations . | . . . . . . . Recycling Units . | . . . . . . . Scanalyzers . | . . . . . . . Garrison Access . | . . . . . . . Total Hacks 7 | . 1 . 2 . 4 . Successful 2 | . . . . . 2 . Failed 5 | . 1 . 2 . 2 . Catastrophic . | . . . . . . . Database Lockouts . | . . . . . . . Manual 4 | . 2 . 1 . 1 . Terminals 7 | . 1 . 2 . 4 . Fabricators . | . . . . . . . Repair Stations . | . . . . . . . Recycling Units . | . . . . . . . Scanalyzers . | . . . . . . . Garrison Access . | . . . . . . . Terminal Hacks 2 | . . . . . 2 . Unreport Threat 1 | . . . . . 1 . Zone Layout 1 | . . . . . 1 . Fabricator Hacks . | . . . . . . . Repair Station Hacks . | . . . . . . . Recycling Unit Hacks . | . . . . . . . Scanalyzer . | . . . . . . . Garrison Access Hacks . | . . . . . . . Unauthorized Hacks . | . . . . . . . Terminals . | . . . . . . . Fabricators . | . . . . . . . Repair Stations . | . . . . . . . Recycling Units . | . . . . . . . Scanalyzers . | . . . . . . . Garrison Access . | . . . . . . . Data Cores Recovered . | . . . . . . . Used . | . . . . . . . Hacking Detections 3 | . 1 . . . 2 . Full Trace Events . | . . . . . . . Feedback Events . | . . . . . . . Feedback Blocked . | . . . . . . . Robot Schematics Acquired . | . . . . . . . Robots Built . | . . . . . . . Authchips . | . . . . . . . Time . | . . . . . . . Total Robot Build Rating . | . . . . . . . Part Schematics Acquired . | . . . . . . . Parts Built . | . . . . . . . Authchips . | . . . . . . . Time . | . . . . . . . Total Part Build Rating . | . . . . . . . Part Studies Acquired . | . . . . . . . Parts Repaired . | . . . . . . . Time . | . . . . . . . Parts Recycled . | . . . . . . . Recycled Matter . | . . . . . . . Retrieved Matter . | . . . . . . . Retrieved Components . | . . . . . . . Parts Scanalyzed . | . . . . . . . Part Schematics Acquired . | . . . . . . . Parts Damaged . | . . . . . . . Bothacking | -11 -10 -10 -9 -8 -7 -6 ------------ Run | Yrd Mat Min Mat Mat Fac Fac Used RIF Installer . | . . . . . . . Robots Hacked . | . . . . . . . Non-combat . | . . . . . . . Combat . | . . . . . . . Robot Hacks Applied . | . . . . . . . Relay Couplers Released . | . . . . . . . Fabnet Peak Effective % . | . . . . . . . Robots Rewired . | . . . . . . . Allies Hacked . | . . . . . . . Hacks Repelled . | . . . . . . . Allies | -11 -10 -10 -9 -8 -7 -6 -------- Run | Yrd Mat Min Mat Mat Fac Fac Total Allies 6 | . . . . . 4 2 Largest Group 4 | . . . . . 4 1 Highest-Rated Group 80 | . . . . . 80 12 Highest-Rated Ally 20 | . . . . . 20 12 Total Orders . | . . . . . . . Ally Attacks 16 | . . . . . 11 5 Total Damage 360 | . . . . . 288 72 Kills 3 | . . . . . 1 2 Allies Corrupted . | . . . . . . . Allies Melted 2 | . . . . . 2 . X0-1V1 Amusement Gains 100 | . 10 . . . 10 80 Good Acts 42 | . 1 1 5 4 8 23 Bad Acts 34 | . 1 2 9 1 9 12 Intel | -11 -10 -10 -9 -8 -7 -6 ------- Run | Yrd Mat Min Mat Mat Fac Fac Active Infowar (turns) . | . . . . . . . Robot Analysis Total . | . . . . . . . Derelict Logs Recovered 1 | . . 1 . . . . Drone Launches . | . . . . . . . Drone Recoveries . | . . . . . . . Exploration | -11 -10 -10 -9 -8 -7 -6 ------------- Run | Yrd Mat Min Mat Mat Fac Fac Turns Passed 2791 | 40 560 133 812 252 368 626 Spaces Moved 2993 | 34 464 147 461 214 873 800 Core 603 | 4 . . 9 . 115 475 Treads . | . . . . . . . Legs . | . . . . . . . Wheels 901 | 30 464 147 260 . . . Hover 279 | . . . . . . 279 Flight 1210 | . . . 192 214 758 46 Fastest Speed 30 | 50 90 90 31 32 30 40 Average Speed 67 | 85 90 90 118 32 36 63 Slowest Speed 300 | 90 90 90 300 112 150 300 Overloaded Moves . | . . . . . . . Propulsion Burnouts . | . . . . . . . Robots Hopped 7 | . . . . . 6 1 Potential Cave-ins . | . . . . . . . Cave-ins Triggered . | . . . . . . . Exploration Rate (%) 33 | 3 72 43 44 20 33 19 Regions Visited 6 Branch Regions 1 Pre-discovered Areas . | . . . . . . . Known Exits Taken 2 | . . 1 . . 1 . Unknown Exits Taken 4 | 1 1 . 1 1 . . Scrap Searched 1 | . . 1 . . . . Spaces Dug 1 | . . . . . . 1 Terrain Destroyed 147 | . . . . . . 147 Melee 1 | . . . . . . 1 Projectile 80 | . . . . . . 80 AOE 66 | . . . . . . 66 Terrain Rammed . | . . . . . . . Walls Destroyed . | . . . . . . . Machines Disabled . | . . . . . . . Actions | -11 -10 -10 -9 -8 -7 -6 --------- Run | Yrd Mat Min Mat Mat Fac Fac Total 3625 | 44 555 147 691 398 906 884 Wait 403 | . 47 . 133 171 17 35 Move 2974 | 33 463 146 460 213 861 798 Hop 6 | . . . . . 5 1 Pick Up 56 | 8 9 . 22 5 5 7 Fast Attach 4 | . . . . . . 4 Attach 53 | 3 5 . 21 4 6 14 Detach 8 | . . . 1 2 2 3 Swap 5 | . . . 5 . . . Drop 28 | . 3 . 19 3 3 . Fire 73 | . 26 . 30 . 6 11 Melee 7 | . . . . . . 7 Ram 7 | . 2 1 . . . 4 Kick . | . . . . . . . Crush . | . . . . . . . Escape Stasis . | . . . . . . . Rewire 1 | . . . . . 1 . Trap . | . . . . . . . Miscellaneous . | . . . . . . . Route ------- -11/Scrapyard -10/Materials (discovered 2 exits: *Mat / [*Min]) -10/Mines -9/Materials -8/Materials -7/Factory (discovered 2 exits: *Fac x2) -6/Factory (discovered 1 exit: Fac) History --------- Turn | Location | Event 27 | -11/Scrapyard | Discovered new exit (range 14) 41 | -11/Scrapyard | Entered Materials 121 | -10/Materials | Discovered new exit (range 7) 144 | -10/Materials | Identified exit to Materials 311 | -10/Materials | Build established: Mutant 336 | -10/Materials | Prayed at D.C.S.S. Altar Unit 482 | -10/Materials | Core integrity permanently improved by X0-1V1 (+200) 563 | -10/Materials | X0-1V1 vaporized surrounding terrain (radius 15) 569 | -10/Materials | Discovered new exit (range 15) 601 | -10/Materials | Entered Mines 664 | -10/Mines | Learned 2 Materials zone layouts 682 | -10/Mines | Matter capacity permanently improved by X0-1V1 (+200; -100 max core) 705 | -10/Mines | Discovered exit to Materials (range 14) 734 | -10/Mines | Entered Materials 734 | -9/Materials | Evolved 2 slots: Propulsion x2 925 | -9/Materials | Heat dissipation permanently improved by X0-1V1 (+25; -125 max core) 1021 | -9/Materials | X0-1V1 foreshadows a heat wave 1208 | -9/Materials | Ambient heat levels rising (+10) 1209 | -9/Materials | X0-1V1 announced a LAN party 1211 | -9/Materials | X0-1V1 mutated your Propulsion slot to Weapon slot 1401 | -9/Materials | Ambient heat levels rising (+10) 1436 | -9/Materials | X0-1V1 vaporized surrounding terrain (radius 17) 1448 | -9/Materials | Core integrity fell below 50% 1478 | -9/Materials | Lost 3 parts (2n1w) 1519 | -9/Materials | Discovered new exit (range 10) 1546 | -9/Materials | Entered another Materials area 1546 | -8/Materials | Evolved 2 slots: Power x1, Propulsion x1 1759 | -8/Materials | X0-1V1 sent you to a vault 1793 | -8/Materials | Discovered new exit (range 16) 1798 | -8/Materials | Entered Factory 1798 | -7/Factory | Evolved 2 slots: Utility x2 1819 | -7/Factory | Identified exit to Factory 1819 | -7/Factory | X0-1V1 revealed exit location to -6/Factory 1893 | -7/Factory | Build established: Sprinter 1943 | -7/Factory | X0-1V1 sent you to a vault 1961 | -7/Factory | Noticed a derelict Sapper rigging charges 2021 | -7/Factory | X0-1V1 announced a LAN party 2024 | -7/Factory | System corruption reached 10% 2026 | -7/Factory | X0-1V1 added 0b10 threat records associated with you (major) 2039 | -7/Factory | X0-1V1 redirected Transport squads to designated parking area 2051 | -7/Factory | Xenon Bombardment Thruster reconfigured into Item Mimic 2072 | -7/Factory | Garrison activated, responded to threat 2096 | -7/Factory | Core integrity fell below 50% 2103 | -7/Factory | X0-1V1 whisked you away to safety 2124 | -7/Factory | Lost 8 parts (1p2n3u2w) 2127 | -7/Factory | Discovered exit to Factory (range 6) 2159 | -7/Factory | Core integrity fell below 20% 2166 | -7/Factory | Entered another Factory area 2166 | -6/Factory | Evolved 2 slots: Propulsion x1, Utility x1 2339 | -6/Factory | Garrison activated, responded to threat 2343 | -6/Factory | Core integrity fell below 50% 2379 | -6/Factory | Lost 3 parts (1u2w) 2388 | -6/Factory | Identified exit to Factory 2388 | -6/Factory | X0-1V1 revealed exit location to -5/Factory 2409 | -6/Factory | X0-1V1 activates XOMVISION 2427 | -6/Factory | X0-1V1 upgraded hostiles (x1) 2455 | -6/Factory | Core integrity restored by X0-1V1 (+189) 2548 | -6/Factory | X0-1V1 sent allied S-27 Virus (x2) 2577 | -6/Factory | X0-1V1 downgraded hostiles (x1) 2606 | -6/Factory | X0-1V1 activates XOMVISION 2613 | -6/Factory | Core integrity fell below 20% 2630 | -6/Factory | Build established: Mutant 2634 | -6/Factory | Core integrity restored by X0-1V1 (+181) 2638 | -6/Factory | X0-1V1 sent you into danger 2652 | -6/Factory | X0-1V1 enhanced Transport squad support 2669 | -6/Factory | Lost 6 parts (1p5n) 2741 | -6/Factory | Core integrity restored by X0-1V1 (+123) 2755 | -6/Factory | X0-1V1 mutated your Weapon slot to Power slot 2792 | -6/Factory | Destroyed by H-66 Slayer with Gauss Rifle Last Messages --------------- SECURING TERMINAL." W-25 Informer sends out distress signal. Slammed into K-01 Serf. Destabilizing: Core damaged (-16). ALERT: Hostiles spotted, dispatching reinforcements to Terminal F008. X0-1V1: "Evolution hits right when you least expect it." (Weapon slot mutated into Power slot) X0-1V1: "I found some blueprints, how convenient!" (2 emergency access locations revealed). X0-1V1's Piety Tracker destroyed. X0-1V1 is mildly amused. Slug penetrates Wall. X0-1V1 smiles upon you. (Received Imp. Heavy Machine Gun x2) K-01 Serf cleans the Assembly Bed. Penetrated by Slug. X0-1V1 chuckles heartily! Map ----- +----------------------------------------------------+ | ???????????????????# #???# #?########### #? | | ???????????????????# #???# #???????????## ##? | | ???????????????????# #???# #????????????#+### | | ???????????????????# #???# #????????????# | | ???????????????????# #####+#########????# | | ?????????????? ????# ## #????# | | ?????????????? ??# ## #????# = | | ?????????????""" ?# ## #????# | | ???????????? """ ####+#### #????# | | ???????????? """ / #????# | | ???????? # #????# | | ??????? + #????# | | ???????? # #????# | | ???????? # #????# | | ?????????################# # #????# | | ?????????????????????????# # #????##### | | ?????????????????????????# # #????????# | | ?????????????????????????#k##############????????# | | ?????????????????????????#Y#?????????????????????# | | ???????????????????????###/######?????????#+###### | | ???????????????????????# h #?????????# | | ???????????????????????# #?????????# | | ???????????????????????# """"#?????????# "T" | | ???????????????????????# """"#?????????# | | ???????????????????????#** """"#?????????# | | ???????????????????????#*@ """"#?????????+ """ | | ???????????????????????# """"#?????????# """ | | ???????????????????????#[ g""""#?????????# """ | | ???????????????????????# #?????????# """ | | ???????????????????????#######+##?????????# ?""" | | ?????????????????????????????????????????? ???""" | | ????????????????????????????????????????? ????""" | | ??????????????????????????????????????????????? | | ???????????????????????????????????????????????? | | ??????????????????????????????????????????????? | | ???????????????????????????????????????????????### | | ?????????????????????????????????????????????????? | | ?????????????????????????????????????????????????? | | ?????????????????????????????????????????????????? | | ?????????????????????????????????????????????????? | | ?????????????????????????????????????????????????? | | ?????????????????????????????????????????????????? | | ?????????????????????????????????????????????????? | | ?????????????????????????????????????????????????? | | ?????????????????????????????????????????????????? | | ?????????????????????????????????????????????????? | | ?????????????????????????????????????????????????? | | ?????????????????????????????????????????????????? | | ?????????????????????????????????????????????????? | | ?????????????????????????????????????????????????? | +----------------------------------------------------+ Best States ------------- Heat Dissipation 62 Energy Generation 18 Energy Capacity 1480 Matter Stores 962 Matter Capacity 1000 Sight Range 19 Terrain Scan Density 10 Evasion (%) 64 Offensive Hacking 10 Defensive Hacking 10 Item Schematics ----------------- None Robot Schematics ------------------ None Fabricated ------------ Nothing Repaired ---------- Nothing Studied --------- None Alien Tech Used ----------------- None Achievements -------------- Chaos Is Inevitable Hard Hitter Into The Breach Challenges ------------ None Game ------ Seed MomentumActiveChainsword Manual? 0 Play Time 00:57:37 Cumulative 51.0 hours Start 2026.08.01 @ 14:52:19 End 2026.08.01 @ 15:58:45 Sessions 1 Manual Loads 0 Difficulty Rogue Special Mode None Game No. 90 Rogue 88 Adventurer 0 Explorer 2 Win Type - Total 0 Types 0/0/0/0/0/0/0/0/0/0 Lore% 26 Gallery% 30 Achievement% 22 Wizard Run 0 Options --------- Layout 1 ASCII 0 Keyboard 0 Movement Mouse Keybinds 0 Fullscreen 1 Font 24/Smallcaps Map View 50x35 Zoom Use 0% Tactical HUD 0 Map Filters NONE Filters NONE Steam 1 RUN: c4338cdd-4aa9-404b-a8f5-129985edf52a